Workbook

Sheet Language

Sheet Table1
A1: Tabla 1.Cambios en el balance y generación de caja o CF | H1: Englis, row | I1: 18
A2: Años ----> | B2: 1 | C2: =B2+1 -> 2 | D2: =C2+1 -> 3 | E2: =D2+1 -> 4 | F2: =E2+1 -> 5 | H2: Português, linha | I2: 36
A3: NOF | B3: 15 | C3: 18 | D3: 16 | E3: 16 | F3: 16
A4: AF, activo fijo | B4: 10 | C4: 11 | D4: 10 | E4: 10 | F4: 10
A5: AN, activo neto | B5: =B3+B4 -> 25 | C5: =C3+C4 -> 29 | D5: =D3+D4 -> 26 | E5: =E3+E4 -> 26 | F5: =F3+F4 -> 26
A7: D, Deuda | B7: 12 | C7: 14 | D7: 14 | E7: 10 | F7: 10
A8: E, Equity | B8: 13 | C8: =B8+C14-C15 -> 15 | D8: =C8+D14-D15 -> 15 | E8: =D8+E14-E15 -> 17 | F8: =E8+F14-F15 -> 17
A9: Financiación | B9: =B7+B8 -> 25 | C9: =C7+C8 -> 29 | D9: =D7+D8 -> 29 | E9: =E7+E8 -> 27 | F9: =F7+F8 -> 27
A11: Caja | B11: =B9-B5 -> 0 | C11: =C9-C5 -> 0 | D11: =D9-D5 -> 3 | E11: =E9-E5 -> 1 | F11: =F9-F5 -> 1
A12: Cash Flow | B12: nd | C12: =C11-B11+C15 -> 0 | D12: =D11-C11+D15 -> 3 | E12: =E11-D11+E15 -> -2 | F12: =F11-E11+F15 -> 2
A14: Beneficio | B14: 1 | C14: 2 | D14: 0 | E14: 2 | F14: 2
A15: Dividendos | B15: 0 | C15: 0 | D15: 0 | E15: 0 | F15: 2
A18: Table 1. Changes in the Balance sheet and cash generation or CF
A19: Years ----> | B19: 1 | C19: =B19+1 -> 2 | D19: =C19+1 -> 3 | E19: =D19+1 -> 4 | F19: =E19+1 -> 5
A20: NFO | B20: 15 | C20: 18 | D20: 16 | E20: 16 | F20: 16
A21: FA, fixed assets | B21: 10 | C21: 11 | D21: 10 | E21: 10 | F21: 10
A22: NA, net assets | B22: =B20+B21 -> 25 | C22: =C20+C21 -> 29 | D22: =D20+D21 -> 26 | E22: =E20+E21 -> 26 | F22: =F20+F21 -> 26
A24: D, Debt | B24: 12 | C24: 14 | D24: 14 | E24: 10 | F24: 10
A25: E, Equity | B25: 13 | C25: =B25+C31-C32 -> 15 | D25: =C25+D31-D32 -> 15 | E25: =D25+E31-E32 -> 17 | F25: =E25+F31-F32 -> 17
A26: Financing | B26: =B24+B25 -> 25 | C26: =C24+C25 -> 29 | D26: =D24+D25 -> 29 | E26: =E24+E25 -> 27 | F26: =F24+F25 -> 27
A28: Cash | B28: =B26-B22 -> 0 | C28: =C26-C22 -> 0 | D28: =D26-D22 -> 3 | E28: =E26-E22 -> 1 | F28: =F26-F22 -> 1
A29: Cash Flow | B29: nd | C29: =C28-B28+C32 -> 0 | D29: =D28-C28+D32 -> 3 | E29: =E28-D28+E32 -> -2 | F29: =F28-E28+F32 -> 2
A31: Net Income | B31: 1 | C31: 2 | D31: 0 | E31: 2 | F31: 2
A32: Dividends paid | B32: 0 | C32: 0 | D32: 0 | E32: 0 | F32: 2
A36: Tabela 1. Mudanças no balanço e geração de caixa ou CF
B37: 1 | C37: =B37+1 -> 2 | D37: =C37+1 -> 3 | E37: =D37+1 -> 4 | F37: =E37+1 -> 5
A38: NOF | B38: 15 | C38: 18 | D38: 16 | E38: 16 | F38: 16
A39: AF, Ativo fixo líquido | B39: 10 | C39: 11 | D39: 10 | E39: 10 | F39: 10
A40: AL, ATIVO LÍQUIDO | B40: =B38+B39 -> 25 | C40: =C38+C39 -> 29 | D40: =D38+D39 -> 26 | E40: =E38+E39 -> 26 | F40: =F38+F39 -> 26
A42: D, Dívida | B42: 12 | C42: 14 | D42: 14 | E42: 10 | F42: 10
A43: RP, Recursos Próprios | B43: 13 | C43: =B43+C49-C50 -> 15 | D43: =C43+D49-D50 -> 15 | E43: =D43+E49-E50 -> 17 | F43: =E43+F49-F50 -> 17
A44: FINANCIAMENTO | B44: =B42+B43 -> 25 | C44: =C42+C43 -> 29 | D44: =D42+D43 -> 29 | E44: =E42+E43 -> 27 | F44: =F42+F43 -> 27
A46: Caixa | B46: =B44-B40 -> 0 | C46: =C44-C40 -> 0 | D46: =D44-D40 -> 3 | E46: =E44-E40 -> 1 | F46: =F44-F40 -> 1
A47: Cash Flow | B47: nd | C47: =C46-B46+C50 -> 0 | D47: =D46-C46+D50 -> 3 | E47: =E46-D46+E50 -> -2 | F47: =F46-E46+F50 -> 2
A49: Lucro liquido | B49: 1 | C49: 2 | D49: 0 | E49: 2 | F49: 2
A50: Dividendos pagos | B50: 0 | C50: 0 | D50: 0 | E50: 0 | F50: 2

Sheet Exhibit 1
A1: P&L | C1: 1 | D1: 2 | E1: 3 | F1: 4 | H1: Assumptions
A2: Sales | C2: =H2 -> 100 | D2: 120 | E2: 140 | F2: 140 | H2: 100
A3: CGS | C3: =$H3*C2 -> 75 | D3: =$H3*D2 -> 90 | E3: =$H3*E2 -> 105 | F3: =$H3*F2 -> 105 | H3: 0.75
A4: Gross Margin | C4: =C2-C3 -> 25 | D4: =D2-D3 -> 30 | E4: =E2-E3 -> 35 | F4: =F2-F3 -> 35
A5: Opex | C5: 5 | D5: 5 | E5: 5 | F5: 5 | H5: 5
A6: EBITDA | C6: =C4-C5 -> 20 | D6: =D4-D5 -> 25 | E6: =E4-E5 -> 30 | F6: =F4-F5 -> 30
A7: Depreciation | C7: =$B$20*H7 -> 10 | D7: =$B$20*H7 -> 10 | E7: =$B$20*H7+20*0.25 -> 15 | F7: =$B$20*H7+20*0.25 -> 15 | H7: 0.25
A8: EBIT | C8: =C6-C7 -> 10 | D8: =D6-D7 -> 15 | E8: =E6-E7 -> 15 | F8: =F6-F7 -> 15
A9: Fin expenses (5%) | C9: =$H9*B23 -> 1 | D9: =$H9*C23 -> 0.75 | E9: =$H9*D23 -> 0.5 | F9: =$H9*E23 -> 0.25 | H9: 0.05
A10: EBT | C10: =C8-C9 -> 9 | D10: =D8-D9 -> 14.25 | E10: =E8-E9 -> 14.5 | F10: =F8-F9 -> 14.75
A11: Taxes (30%) | C11: =$H11*C10 -> 2.7 | D11: =$H11*D10 -> 4.275 | E11: =$H11*E10 -> 4.35 | F11: =$H11*F10 -> 4.425 | H11: 0.3
A12: Net Income | C12: =C10-C11 -> 6.3 | D12: =D10-D11 -> 9.975 | E12: =E10-E11 -> 10.15 | F12: =F10-F11 -> 10.325
A14: New investments in FA | C14: 0 | D14: 20 | E14: 0 | F14: 0 | H14: Average
A15: RONA (EBIT / Net assets) | C15: =C8/C21 -> 0.2 | D15: =D8/D21 -> 0.234375 | E15: =E8/E21 -> 0.2830188679 | F15: na | H15: =AVERAGE(C15:E15) -> 0.2391312893
A16: ROE (Net income / equity) | C16: =C12/C24 -> 0.173553719 | D16: =D12/D24 -> 0.2155591572 | E16: =E12/E24 -> 0.1798848028 | F16: =F12/F24 -> 0.1546816479 | H16: =AVERAGE(C16:F16) -> 0.1809198317
A18: Short Balance sheet | B18: 0 | C18: 1 | D18: 2 | E18: 3 | F18: 4
A19: NFO | B19: 0 | C19: =0.2*C2 -> 20 | D19: 24 | E19: 28 | F19: 0 | H19: 0.2
A20: FA, Fixed assets net | B20: 40 | C20: =B20-C7+C14 -> 30 | D20: =C20-D7+D14 -> 40 | E20: =D20-E7+E14 -> 25 | F20: 0
A21: NA, NET ASSETS | B21: =B19+B20 -> 40 | C21: =C19+C20 -> 50 | D21: =D19+D20 -> 64 | E21: =E19+E20 -> 53 | F21: =F19+F20 -> 0
L22: Average | M22: W | N22: K | O22: WxK
A23: D, Debt | B23: 20 | C23: =B23+$H23 -> 15 | D23: =C23+$H23 -> 10 | E23: =D23+$H23 -> 5 | F23: =E23+$H23 -> 0 | H23: =-B23/4 -> -5 | K23: Debt | L23: =SUM(B23:F23)/5 -> 10 | M23: =L23/L25 -> 0.1749781277 | N23: =5%*0.7 -> 0.035 | O23: =M23*N23 -> 0.006124234471
A24: E, Equity | B24: 30 | C24: =B24+C12 -> 36.3 | D24: =C24+D12 -> 46.275 | E24: =D24+E12 -> 56.425 | F24: =E24+F12 -> 66.75 | K24: Equity | L24: =SUM(B24:F24)/5 -> 47.15 | M24: =L24/L25 -> 0.8250218723 | N24: =15% -> 0.15 | O24: =M24*N24 -> 0.1237532808
A25: FINANCING | B25: =B23+B24 -> 50 | C25: =C23+C24 -> 51.3 | D25: =D23+D24 -> 56.275 | E25: =E23+E24 -> 61.425 | F25: =F23+F24 -> 66.75 | K25: Financing | L25: =L23+L24 -> 57.15 | M25: =M23+M24 -> 1 | O25: =O23+O24 -> 0.1298775153
A27: Cash (+) or credit necessary (-) | B27: =B25-B21 -> 10 | C27: =C25-C21 -> 1.3 | D27: =D25-D21 -> -7.725 | E27: =E25-E21 -> 8.425 | F27: =F25-F21 -> 66.75
A28: Increase of Cash | B28: =-B24+B27 -> -20 | C28: =C27-B27 -> -8.7 | D28: =D27-C27 -> -9.025 | E28: =E27-D27 -> 16.15 | F28: =F27-E27 -> 58.325
A30: CF shareholder and FCF | B30: 0 | C30: 1 | D30: 2 | E30: 3 | F30: 4 | H30: Sum of CF
A31: Net Income | C31: =C12 -> 6.3 | D31: =D12 -> 9.975 | E31: =E12 -> 10.15 | F31: =F12 -> 10.325 | H31: =SUM(B31:F31) -> 36.75
A32: ± Variation NA | B32: =-B20 -> -40 | C32: =B21-C21 -> -10 | D32: =C21-D21 -> -14 | E32: =D21-E21 -> 11 | F32: =E21-F21 -> 53 | H32: =SUM(B32:F32) -> 0
A33: ± Variation of Debt | B33: =B23 -> 20 | C33: =C23-B23 -> -5 | D33: =D23-C23 -> -5 | E33: =E23-D23 -> -5 | F33: =F23-E23 -> -5 | H33: 0
A34: CF shareholder | B34: =B31+B32+B33 -> -20 | C34: =C31+C32+C33 -> -8.7 | D34: =D31+D32+D33 -> -9.025 | E34: =E31+E32+E33 -> 16.15 | F34: =F31+F32+F33 -> 58.325 | H34: 36.75
A36: EBIT x (1 - t) | C36: =C8*(1-$H$11) -> 7 | D36: =D8*(1-$H$11) -> 10.5 | E36: =E8*(1-$H$11) -> 10.5 | F36: =F8*(1-$H$11) -> 10.5 | H36: =SUM(B36:F36) -> 38.5
A37: ± Variation NA | B37: =B32 -> -40 | C37: =C32 -> -10 | D37: -14 | E37: 11 | F37: 53 | H37: =SUM(B37:F37) -> 0
A38: FCF or CF from the assets | B38: =B36+B37 -> -40 | C38: =C36+C37 -> -3 | D38: =D36+D37 -> -3.5 | E38: =E36+E37 -> 21.5 | F38: =F36+F37 -> 63.5 | H38: =SUM(B38:F38) -> 38.5
C41: Required return by the shareholder K = | D41: 0.15 | G41: PV shareholder | H41: =NPV(D41,C34:F34) -> 29.57698121
C42: IRR shareholder | D42: =IRR(B34:F34) -> 0.2430176781 | G42: NPV shareholder | H42: =H41+B34 -> 9.576981214
C43: IRR of assets = IRR shaereholder if no debt | D43: =IRR(B38:F38) -> 0.1857399526

Sheet Anexo 1 (hidden)
A1: Cta Rdos abreviada | C1: 1 | D1: 2 | E1: 3 | F1: 4 | H1: Hipótesis
A2: Ventas | C2: =H2 -> 100 | D2: 120 | E2: 140 | F2: 140 | H2: 100
A3: CMV | C3: =$H3*C2 -> 75 | D3: =$H3*D2 -> 90 | E3: =$H3*E2 -> 105 | F3: =$H3*F2 -> 105 | H3: 0.75
A4: Margen bruto | C4: =C2-C3 -> 25 | D4: =D2-D3 -> 30 | E4: =E2-E3 -> 35 | F4: =F2-F3 -> 35
A5: Gastos generales | C5: 5 | D5: 5 | E5: 5 | F5: 5 | H5: 5
A6: EBITDA | C6: =C4-C5 -> 20 | D6: =D4-D5 -> 25 | E6: =E4-E5 -> 30 | F6: =F4-F5 -> 30
A7: Amortización | C7: =$B$20*H7 -> 10 | D7: =$B$20*H7 -> 10 | E7: =$B$20*H7+20*0.25 -> 15 | F7: =$B$20*H7+20*0.25 -> 15 | H7: 0.25
A8: EBIT | C8: =C6-C7 -> 10 | D8: =D6-D7 -> 15 | E8: =E6-E7 -> 15 | F8: =F6-F7 -> 15
A9: Intereses (5%) | C9: =$H9*B23 -> 1 | D9: =$H9*C23 -> 0.75 | E9: =$H9*D23 -> 0.5 | F9: =$H9*E23 -> 0.25 | H9: 0.05
A10: BAT benef ant imp. | C10: =C8-C9 -> 9 | D10: =D8-D9 -> 14.25 | E10: =E8-E9 -> 14.5 | F10: =F8-F9 -> 14.75
A11: Impuestos (30%) | C11: =$H11*C10 -> 2.7 | D11: =$H11*D10 -> 4.275 | E11: =$H11*E10 -> 4.35 | F11: =$H11*F10 -> 4.425 | H11: 0.3
A12: Beneficio neto | C12: =C10-C11 -> 6.3 | D12: =D10-D11 -> 9.975 | E12: =E10-E11 -> 10.15 | F12: =F10-F11 -> 10.325
A14: Nuevas inversiones en AF | C14: 0 | D14: 20 | E14: 0 | F14: 0
A15: RONA (Ebit / Activo neto) | C15: =C8/C21 -> 0.2 | D15: =D8/D21 -> 0.234375 | E15: =E8/E21 -> 0.2830188679 | F15: na
A16: ROE (Benef / rec propios) | C16: =C12/C24 -> 0.173553719 | D16: =D12/D24 -> 0.2155591572 | E16: =E12/E24 -> 0.1798848028 | F16: =F12/F24 -> 0.1546816479
A18: Balance corto | B18: 0 | C18: 1 | D18: 2 | E18: 3 | F18: 4
A19: NOF | B19: 0 | C19: =0.2*C2 -> 20 | D19: 24 | E19: 28 | F19: 0 | H19: 0.2
A20: AF, Activo fijo neto | B20: 40 | C20: =B20-C7+C14 -> 30 | D20: =C20-D7+D14 -> 40 | E20: =D20-E7+E14 -> 25 | F20: 0
A21: AN, ACTIVO NETO | B21: =B19+B20 -> 40 | C21: =C19+C20 -> 50 | D21: =D19+D20 -> 64 | E21: =E19+E20 -> 53 | F21: =F19+F20 -> 0
L22: Promedio | M22: W | N22: K | O22: WxK
A23: D, Deuda | B23: 20 | C23: =B23+$H23 -> 15 | D23: =C23+$H23 -> 10 | E23: =D23+$H23 -> 5 | F23: =E23+$H23 -> 0 | H23: =-B23/4 -> -5 | K23: Deuda | L23: =SUM(B23:F23)/5 -> 10 | M23: =L23/L25 -> 0.1749781277 | N23: =5%*0.7 -> 0.035 | O23: =M23*N23 -> 0.006124234471
A24: RP, Rec. Propios | B24: 30 | C24: =B24+C12 -> 36.3 | D24: =C24+D12 -> 46.275 | E24: =D24+E12 -> 56.425 | F24: =E24+F12 -> 66.75 | K24: Rec Propios | L24: =SUM(B24:F24)/5 -> 47.15 | M24: =L24/L25 -> 0.8250218723 | N24: =15% -> 0.15 | O24: =M24*N24 -> 0.1237532808
A25: FINANCIACIÓN | B25: =B23+B24 -> 50 | C25: =C23+C24 -> 51.3 | D25: =D23+D24 -> 56.275 | E25: =E23+E24 -> 61.425 | F25: =F23+F24 -> 66.75 | K25: Financiación | L25: =L23+L24 -> 57.15 | M25: =M23+M24 -> 1 | O25: =O23+O24 -> 0.1298775153
A27: Caja (+) o crédito necesario (-) | B27: =B25-B21 -> 10 | C27: =C25-C21 -> 1.3 | D27: =D25-D21 -> -7.725 | E27: =E25-E21 -> 8.425 | F27: =F25-F21 -> 66.75
A28: Incremento de Caja | B28: =-B24+B27 -> -20 | C28: =C27-B27 -> -8.7 | D28: =D27-C27 -> -9.025 | E28: =E27-D27 -> 16.15 | F28: =F27-E27 -> 58.325
A30: CF accionista y FCF | B30: 0 | C30: 1 | D30: 2 | E30: 3 | F30: 4 | H30: Suma de CF
A31: Beneficio neto | C31: =C12 -> 6.3 | D31: =D12 -> 9.975 | E31: =E12 -> 10.15 | F31: =F12 -> 10.325 | H31: =SUM(B31:F31) -> 36.75
A32: ± Variación AN | B32: =-B20 -> -40 | C32: =B21-C21 -> -10 | D32: =C21-D21 -> -14 | E32: =D21-E21 -> 11 | F32: =E21-F21 -> 53 | H32: =SUM(B32:F32) -> 0
A33: ± Variación Deuda | B33: =B23 -> 20 | C33: =C23-B23 -> -5 | D33: =D23-C23 -> -5 | E33: =E23-D23 -> -5 | F33: =F23-E23 -> -5 | H33: 0
A34: CF accionista | B34: =B31+B32+B33 -> -20 | C34: =C31+C32+C33 -> -8.7 | D34: =D31+D32+D33 -> -9.025 | E34: =E31+E32+E33 -> 16.15 | F34: =F31+F32+F33 -> 58.325 | H34: 36.75
A36: EBIT x (1 - t) | C36: =C8*(1-$H$11) -> 7 | D36: =D8*(1-$H$11) -> 10.5 | E36: =E8*(1-$H$11) -> 10.5 | F36: =F8*(1-$H$11) -> 10.5 | H36: =SUM(B36:F36) -> 38.5
A37: ± Variación AN | B37: =B32 -> -40 | C37: =C32 -> -10 | D37: -14 | E37: 11 | F37: 53 | H37: =SUM(B37:F37) -> 0
A38: FCF o CF activo | B38: =B36+B37 -> -40 | C38: =C36+C37 -> -3 | D38: =D36+D37 -> -3.5 | E38: =E36+E37 -> 21.5 | F38: =F36+F37 -> 63.5 | H38: =SUM(B38:F38) -> 38.5
J39: Cta Rdos abreviada | L39: 1 | M39: 2 | N39: 3 | O39: 4 | Q39: Hipótesis
J40: Ventas | L40: 100 | M40: 120 | N40: 140 | O40: 140 | Q40: 100
C41: Rentabilidad requerida por el accionista K = | D41: 0.15 | G41: VA accionista | H41: =NPV(D41,C34:F34) -> 29.57698121 | J41: CMV | L41: 75 | M41: 90 | N41: 105 | O41: 105 | Q41: 0.75
C42: TIR del Accionista | D42: =IRR(B34:F34) -> 0.2430176781 | G42: VAN accionista | H42: =H41+B34 -> 9.576981214 | J42: Margen bruto | L42: 25 | M42: 30 | N42: 35 | O42: 35
C43: TIR del Activo o TIR del accionista sin deuda | D43: =IRR(B38:F38) -> 0.1857399526 | J43: Gastos generales | L43: 5 | M43: 5 | N43: 5 | O43: 5 | Q43: 5
J44: EBITDA | L44: 20 | M44: 25 | N44: 30 | O44: 30
J45: Amortización | L45: 10 | M45: 10 | N45: 15 | O45: 15 | Q45: 0.25
J46: EBIT | L46: 10 | M46: 15 | N46: 15 | O46: 15
J47: Intereses (5%) | L47: 1 | M47: 0.75 | N47: 0.5 | O47: 0.25 | Q47: 0.05
J48: BAT benef ant imp. | L48: 9 | M48: 14.25 | N48: 14.5 | O48: 14.75
J49: Impuestos (30%) | L49: 2.7 | M49: 4.275 | N49: 4.35 | O49: 4.425 | Q49: 0.3
J50: Beneficio neto | L50: 6.3 | M50: 9.975 | N50: 10.15 | O50: 10.325
J52: Nuevas inversiones en AF | L52: 0 | M52: 20 | N52: 0 | O52: 0
J53: RONA (Ebit / Activo neto) | L53: 0.2 | M53: 0.234375 | N53: 0.2830188679 | O53: na
J54: ROE (Benef / rec propios) | L54: 0.173553719 | M54: 0.2155591572 | N54: 0.1798848028 | O54: 0.1546816479
J56: Balance corto | K56: 0 | L56: 1 | M56: 2 | N56: 3 | O56: 4
J57: NOF | K57: 0 | L57: 20 | M57: 24 | N57: 28 | O57: 0 | Q57: 0.2
J58: AF, Activo fijo neto | K58: 40 | L58: 30 | M58: 40 | N58: 25 | O58: 0
J59: AN, ACTIVO NETO | K59: 40 | L59: 50 | M59: 64 | N59: 53 | O59: 0
J61: D, Deuda | K61: 20 | L61: 15 | M61: 10 | N61: 5 | O61: 0 | Q61: -5
J62: RP, Rec. Propios | K62: 30 | L62: 36.3 | M62: 46.275 | N62: 56.425 | O62: 66.75
J63: FINANCIACIÓN | K63: 50 | L63: 51.3 | M63: 56.275 | N63: 61.425 | O63: 66.75
J65: Caja (+) o crédito necesario (-) | K65: 10 | L65: 1.3 | M65: -7.725 | N65: 8.425 | O65: 66.75
J66: Incremento de Caja | K66: -20 | L66: -8.7 | M66: -9.025 | N66: 16.15 | O66: 58.325
J68: CF accionista y FCF | K68: 0 | L68: 1 | M68: 2 | N68: 3 | O68: 4 | Q68: Suma de CF
J69: Beneficio neto | L69: 6.3 | M69: 9.975 | N69: 10.15 | O69: 10.325 | Q69: 36.75
J70: ± Variación AN | K70: -40 | L70: -10 | M70: -14 | N70: 11 | O70: 53 | Q70: 0
J71: ± Variación Deuda | K71: 20 | L71: -5 | M71: -5 | N71: -5 | O71: -5 | Q71: 0
J72: CF accionista | K72: -20 | L72: -8.7 | M72: -9.025 | N72: 16.15 | O72: 58.325 | Q72: 36.75
J74: EBIT x (1 - t) | L74: 7 | M74: 10.5 | N74: 10.5 | O74: 10.5 | Q74: 38.5
J75: ± Variación AN | K75: -40 | L75: -10 | M75: -14 | N75: 11 | O75: 53 | Q75: 0
J76: FCF o CF activo | K76: -40 | L76: -3 | M76: -3.5 | N76: 21.5 | O76: 63.5 | Q76: 38.5
L79: Rentabilidad requerida por el accionista K = | M79: 0.15 | P79: VA accionista | Q79: 29.57698121
L80: TIR del Accionista | M80: 0.2430176781 | P80: VAN accionista | Q80: 9.576981214
L81: TIR del Activo o TIR del accionista sin deuda | M81: 0.1857399526

Sheet Anexo 1 PT (hidden)
A1: P&L | C1: 1 | D1: 2 | E1: 3 | F1: 4 | H1: Hipóteses
A2: Vendas | C2: =H2 -> 100 | D2: 120 | E2: 140 | F2: 140 | H2: 100
A3: CMV | C3: =$H3*C2 -> 75 | D3: =$H3*D2 -> 90 | E3: =$H3*E2 -> 105 | F3: =$H3*F2 -> 105 | H3: 0.75
A4: Margem bruta | C4: =C2-C3 -> 25 | D4: =D2-D3 -> 30 | E4: =E2-E3 -> 35 | F4: =F2-F3 -> 35
A5: Despesas gerais | C5: 5 | D5: 5 | E5: 5 | F5: 5 | H5: 5
A6: EBITDA | C6: =C4-C5 -> 20 | D6: =D4-D5 -> 25 | E6: =E4-E5 -> 30 | F6: =F4-F5 -> 30
A7: Depreciação | C7: =$B$20*H7 -> 10 | D7: =$B$20*H7 -> 10 | E7: =$B$20*H7+20*0.25 -> 15 | F7: =$B$20*H7+20*0.25 -> 15 | H7: 0.25
A8: EBIT | C8: =C6-C7 -> 10 | D8: =D6-D7 -> 15 | E8: =E6-E7 -> 15 | F8: =F6-F7 -> 15
A9: Juros (5%) | C9: =$H9*B23 -> 1 | D9: =$H9*C23 -> 0.75 | E9: =$H9*D23 -> 0.5 | F9: =$H9*E23 -> 0.25 | H9: 0.05
A10: EBT (earnings before taxes) | C10: =C8-C9 -> 9 | D10: =D8-D9 -> 14.25 | E10: =E8-E9 -> 14.5 | F10: =F8-F9 -> 14.75
A11: Impostos (30%) | C11: =$H11*C10 -> 2.7 | D11: =$H11*D10 -> 4.275 | E11: =$H11*E10 -> 4.35 | F11: =$H11*F10 -> 4.425 | H11: 0.3
A12: Lucro Líquido | C12: =C10-C11 -> 6.3 | D12: =D10-D11 -> 9.975 | E12: =E10-E11 -> 10.15 | F12: =F10-F11 -> 10.325
A14: Novos investimentos em AF | C14: 0 | D14: 20 | E14: 0 | F14: 0
A15: RONA (Ebit / Ativo líquido) | C15: =C8/C21 -> 0.2 | D15: =D8/D21 -> 0.234375 | E15: =E8/E21 -> 0.2830188679 | F15: na
A16: ROE (Lucro Líq. / Rec. Próprios) | C16: =C12/C24 -> 0.173553719 | D16: =D12/D24 -> 0.2155591572 | E16: =E12/E24 -> 0.1798848028 | F16: =F12/F24 -> 0.1546816479
A18: Balanço curto (ou resumido) | B18: 0 | C18: 1 | D18: 2 | E18: 3 | F18: 4
A19: NOF | B19: 0 | C19: =0.2*C2 -> 20 | D19: 24 | E19: 28 | F19: 0 | H19: 0.2
A20: AF, Ativo fixo líquido | B20: 40 | C20: =B20-C7+C14 -> 30 | D20: =C20-D7+D14 -> 40 | E20: =D20-E7+E14 -> 25 | F20: 0
A21: AL, ATIVO LÍQUIDO | B21: =B19+B20 -> 40 | C21: =C19+C20 -> 50 | D21: =D19+D20 -> 64 | E21: =E19+E20 -> 53 | F21: =F19+F20 -> 0
L22: Promedio | M22: W | N22: K | O22: WxK
A23: D, Dívida | B23: 20 | C23: =B23+$H23 -> 15 | D23: =C23+$H23 -> 10 | E23: =D23+$H23 -> 5 | F23: =E23+$H23 -> 0 | H23: =-B23/4 -> -5 | K23: Dívida | L23: =SUM(B23:F23)/5 -> 10 | M23: =L23/L25 -> 0.1749781277 | N23: =5%*0.7 -> 0.035 | O23: =M23*N23 -> 0.006124234471
A24: RP, Recursos Próprios | B24: 30 | C24: =B24+C12 -> 36.3 | D24: =C24+D12 -> 46.275 | E24: =D24+E12 -> 56.425 | F24: =E24+F12 -> 66.75 | K24: Rec. Próprios | L24: =SUM(B24:F24)/5 -> 47.15 | M24: =L24/L25 -> 0.8250218723 | N24: =15% -> 0.15 | O24: =M24*N24 -> 0.1237532808
A25: FINANCIAMENTO | B25: =B23+B24 -> 50 | C25: =C23+C24 -> 51.3 | D25: =D23+D24 -> 56.275 | E25: =E23+E24 -> 61.425 | F25: =F23+F24 -> 66.75 | K25: Financiamento | L25: =L23+L24 -> 57.15 | M25: =M23+M24 -> 1 | O25: =O23+O24 -> 0.1298775153
A27: Caixa (+) ou crédito necessário (-) | B27: =B25-B21 -> 10 | C27: =C25-C21 -> 1.3 | D27: =D25-D21 -> -7.725 | E27: =E25-E21 -> 8.425 | F27: =F25-F21 -> 66.75
A28: Aumento de caixa | B28: =-B24+B27 -> -20 | C28: =C27-B27 -> -8.7 | D28: =D27-C27 -> -9.025 | E28: =E27-D27 -> 16.15 | F28: =F27-E27 -> 58.325
A30: CF acionista e CF ativo | B30: 0 | C30: 1 | D30: 2 | E30: 3 | F30: 4 | H30: Soma dos CF
A31: Lucro líquido | C31: =C12 -> 6.3 | D31: =D12 -> 9.975 | E31: =E12 -> 10.15 | F31: =F12 -> 10.325 | H31: =SUM(B31:F31) -> 36.75
A32: ± Variação do AL | B32: =-B20 -> -40 | C32: =B21-C21 -> -10 | D32: =C21-D21 -> -14 | E32: =D21-E21 -> 11 | F32: =E21-F21 -> 53 | H32: =SUM(B32:F32) -> 0
A33: ± Variação Dívida | B33: =B23 -> 20 | C33: =C23-B23 -> -5 | D33: =D23-C23 -> -5 | E33: =E23-D23 -> -5 | F33: =F23-E23 -> -5 | H33: 0
A34: CF acionista | B34: =B31+B32+B33 -> -20 | C34: =C31+C32+C33 -> -8.7 | D34: =D31+D32+D33 -> -9.025 | E34: =E31+E32+E33 -> 16.15 | F34: =F31+F32+F33 -> 58.325 | H34: 36.75
A36: EBIT x (1 - t) | C36: =C8*(1-$H$11) -> 7 | D36: =D8*(1-$H$11) -> 10.5 | E36: =E8*(1-$H$11) -> 10.5 | F36: =F8*(1-$H$11) -> 10.5 | H36: =SUM(B36:F36) -> 38.5
A37: ± Variação do AL | B37: =B32 -> -40 | C37: =C32 -> -10 | D37: -14 | E37: 11 | F37: 53 | H37: =SUM(B37:F37) -> 0
A38: FCF ou CF ativo | B38: =B36+B37 -> -40 | C38: =C36+C37 -> -3 | D38: =D36+D37 -> -3.5 | E38: =E36+E37 -> 21.5 | F38: =F36+F37 -> 63.5 | H38: =SUM(B38:F38) -> 38.5
C41: Rentabilidade requerida pelo acionista K = | D41: 0.15 | G41: VP acionista | H41: =NPV(D41,C34:F34) -> 29.57698121
C42: TIR do Acionista | D42: =IRR(B34:F34) -> 0.2430176781 | G42: VPL acionista | H42: =H41+B34 -> 9.576981214
C43: TIR do Ativo = TIR od acionista sem divida | D43: =IRR(B38:F38) -> 0.1857399526

Sheet Questions
B1: Chapter 6. SELF-ASSESSMENT QUESTIONS
B2: Write your answers T or F (True or False) in column C. Right answer 1 point. Wrong 0 points.
B3: Check the correct answers in Col. E. Click on the 2 in the top left corner; or click "+" above column F.
C4: Answer | D4: Your Mark
B5: QUESTIONS | C5: T or F | E5: E
A7: 1 | B7: The NA on the balance sheet are composed of net FA and NFO. T or F? | D7: =IF(C7=E7,1,0) -> 0 | E7: T
A8: 2 | B8: The amount of debt in the balance sheet is always a consequence of NA and equity. T or F? | D8: =IF(C8=E8,1,0) -> 0 | E8: T
A9: 3 | B9: The return of the equity depends always on the return of fixed assets, the cost of the debt and the dividends paid. T or F? | D9: 0 | E9: F
A10: 4 | B10: In the discounted cash flow formula (DCF) if we increase the K, the value for me also increases. T or F? | D10: 0 | E10: F
A11: 5 | B11: The value of a project of long duration depends on three main variables: the cash flow that we expect to receive every year during many years, the expected growth (g) of that cash flow and the required return, K. T or F? | D11: 0 | E11: T
A12: 6 | B12: In an investment project we pay an amount of money equal to the present value for us of that project. The return we expect toget is precisely K. T or F? | D12: 0 | E12: T
A13: 7 | B13: We expect to get a CFshare of €10/year during many years. If we pay €100 for the company, the return we expect to get is 10 percent. T or F? | D13: 0 | E13: T
A14: 8 | B14: We expect to get a CFshare of €8/year during many years. If our required return Ke is 16 per cent, we should pay €40 for thecompany. T or F? | D14: 0 | E14: F
A15: 9 | B15: The CFshare is the difference in cash on the balance sheet from one year to another plus the dividends paid. T or F? | D15: 0 | E15: T
A16: 10 | B16: CFshare = net income ± var. AN + depreciation − new investments. T or F? | D16: 0 | E16: F
A17: 11 | B17: An increase of NA produces a decrease of cash. T or F? | D17: 0 | E17: T
A18: 12 | B18: An increase of debt produces a decrease of cash. T or F? | D18: 0 | E18: F
A19: 13 | B19: The CFshare is used to calculate the return for shareholders and to value companies. T or F? | D19: 0 | E19: T
A20: 14 | B20: The CFshare can only go to the shareholder or to repay debt.T or F? | D20: 0 | E20: F
A21: 15 | B21: FCF or cash flow from the assets = EBIT (1-t) ± variation of NA.T or F? | D21: 0 | E21: T
A22: 16 | B22: FCF is the cash flow produced by the assets, without considering the financing. T or F? | D22: 0 | E22: T
A23: 17 | B23: Two companies, A and B, have the same EBIT, but A requiresfrequent new investments, while B doesn’t. A will produce alarger FCF. T or F? | D23: 0 | E23: F
A24: 18 | B24: The FCF can be used solely to repay debt or for new investments.T or F? | D24: 0 | E24: F
A25: 19 | B25: The FCF is used solely to repay debt (interests and principal) and shareholders.T or F? | D25: 0 | E25: T
A26: 20 | B26: Operational cash flow is equal to net earnings + depreciation.T or F? | D26: 0 | E26: T
A27: 21 | B27: The increase in cash is the same as the year’s CFO. T or F? | D27: 0 | E27: F
A28: 22 | B28: The return we require from an investment can be broken downinto two components: risk-free rate (rf) and risk premium (rp).T or F? | D28: 0 | E28: T
A29: 23 | B29: The risk premium that we require from an investment dependson the risk of the project (‘objective’) and the aversion to risk ofthe investor (subjective). T or F? | D29: 0 | E29: T
A30: 24 | B30: If one investor is more risk averse than another, she will have todemand a lower return, Ke. T or F? | D30: 0 | E30: F
A31: 25 | B31: A company has always the same value, whatever the investor,because the value depends on the cash flow expected from thecompany. T or F? | D31: 0 | E31: F
B34: TOTAL QUALIFICATION OBTAINED | D34: =SUM(D7:D31) -> 0
B35: Maximum rating possible | D35: 25

Sheet Preguntas (hidden)
B1: CAP. 6. PREGUNTAS DE AUTOEVALUACION
B2: Escribir las respuestas V o F (Verdadero o Falso) en la columna C. Respuesta correcta 1 punto. Incorrecto 0 puntos.
B3: Las respuestas correctas están en la columna E. Hacer clic en el 2 en la esquina superior izquierda; o haga clic en "+" sobre la columna F.
C4: Respuestas | D4: Calificación | E4: Respuesta
B5: PREGUNTAS | C5: V o F | D5: Obtenida (4) | E5: correcta
A7: 1 | B7: El activo neto de un balance se compone de activo fijo neto y NOF. ¿Verdadero o falso? | D7: =IF(C7=E7,1,0) -> 0 | E7: V
A8: 2 | B8: La deuda es siempre consecuencia del activo neto en que se invierte y de los recursos propios de que se dispone. ¿Verdadero o falso? | D8: =IF(C8=E8,1,0) -> 0 | E8: V
A9: 3 | B9: La rentabilidad de los recursos propios depende exclusivamente de la rentabilidad de la inversión en activo fijo y del coste de la deuda y de los dividendos que se hayan pagado. ¿Verdadero o falso? | D9: 0 | E9: F
A10: 4 | B10: En la fórmula del descuento de flujos, si aumentamos la K que le pedimos a la inversión, el valor «para mí» también aumenta. ¿Verdadero o falso? | D10: 0 | E10: F
A11: 5 | B11: El valor de un proyecto de larga duración depende de tres variables: el CF que razonablemente esperamos para cada año, el crecimiento esperado g de los CF y la tasa de rentabilidad exigida K. ¿Verdadero o falso? | D11: 0 | E11: V
A12: 6 | B12: Si pagamos por un proyecto una cantidad igual a su valor presente «para mí», la rentabilidad que esperamos obtener es K. ¿Verdadero o falso? | D12: 0 | E12: V
A13: 7 | B13: Una empresa promete un CFacc de 10 €/año durante muchos años. Si pago por ella 100 €, espero obtener una rentabilidad del 10 %. ¿Verdadero o falso? | D13: 0 | E13: V
A14: 8 | B14: Una empresa promete un CFacc de 8 €/año durante muchos años. Mi rentabilidad exigida es 16 %; por tanto, debería pagar por ella 40 €. ¿Verdadero o falso? | D14: 0 | E14: F
A15: 9 | B15: El CFacc en un año concreto es la diferencia de caja de un año a otro en el balance más los dividendos pagados. ¿Verdadero o falso? | D15: 0 | E15: V
A16: 10 | B16: CFacc = Beneficio neto − var. AN + amortización − nuevas inversiones. ¿Verdadero o falso? | D16: 0 | E16: F
A17: 11 | B17: Un aumento de activo neto produce disminución de caja. ¿Verdadero o falso? | D17: 0 | E17: V
A18: 12 | B18: Un aumento de deuda produce disminución de caja. ¿Verdadero o falso? | D18: 0 | E18: F
A19: 13 | B19: El CFacc se usa para calcular la rentabilidad del accionista y para valoración de empresas. ¿Verdadero o falso? | D19: 0 | E19: V
A20: 14 | B20: El CFacc se destina exclusivamente a devolver deuda y pagar al accionista. ¿Verdadero o falso? | D20: 0 | E20: F
A21: 15 | B21: FCF = EBIT (1-t) − variación de activo neto AN. ¿Verdadero o falso? | D21: 0 | E21: V
A22: 16 | B22: El FCF es el CF producido por el activo, sin tener en cuenta la financiación. ¿Verdadero o falso? | D22: 0 | E22: V
A23: 17 | B23: Dos empresas A y B tienen el mismo EBIT, pero A requiere frecuente inversión nueva y B no. A producirá mayor FCF. ¿Verdadero o falso? | D23: 0 | E23: F
A24: 18 | B24: El FCF se destina solo a repagar deuda o a nuevas inversiones. ¿Verdadero o falso? | D24: 0 | E24: F
A25: 19 | B25: El FCF se destina solo a pagar deuda (intereses y principal) y accionistas. ¿Verdadero o falso? | D25: 0 | E25: V
A26: 20 | B26: El CF operativo CFO es igual al beneficio neto + amortización. ¿Verdadero o falso? | D26: 0 | E26: V
A27: 21 | B27: El aumento de caja es igual al CFO del año. ¿Verdadero o falso? | D27: 0 | E27: F
A28: 22 | B28: La rentabilidad que le pedimos a una inversión se puede descomponer en dos componentes: tasa libre de riesgo (rf) y prima de riesgo (rp). ¿Verdadero o falso? | D28: 0 | E28: V
A29: 23 | B29: La prima de riesgo que le pedimos a una inversión depende del riesgo «objetivo» del proyecto y de la aversión «subjetiva» al riesgo del inversor. ¿Verdadero o falso? | D29: 0 | E29: V
A30: 24 | B30: Si un inversor es más averso al riesgo que otro, tenderá a pedir una rentabilidad K menor. ¿Verdadero o falso? | D30: 0 | E30: F
A31: 25 | B31: Una empresa vale siempre lo mismo para cualquier inversor, pues su valor depende de los cash flows CF esperados. ¿Verdadero o falso? | D31: 0 | E31: F
B35: TOTAL CALIFICACION OBTENIDA | D35: =SUM(D7:E31) -> 0
B36: Máxima calificación posible | D36: 25

Sheet Perguntas PT (hidden)
B1: Cap 6. PERGUNTAS DE AUTO-AVALIAÇÃO
B2: Escreva as respostas V ou F (Verdadeiro ou Falso) na coluna C. Resposta correta 1 ponto. 0 pontos incorretos.
B3: As respostas corretas estão na coluna E. Clique no 2 no canto superior esquerdo; ou clique em "+" na coluna F.
C4: Respostas | D4: Qualificação | E4: Resposta
B5: PERGUNTAS | C5: V o F | D5: Obtida | E5: correta
A7: 1 | B7: O ativo líquido de um balanço é composto do ativo fixo líquido e das NOF. Verdadeiro ou falso? | D7: =IF(C7=E7,1,0) -> 0 | E7: V
A8: 2 | B8: A dívida é sempre consequência do investimento em ativo líquido e dos recursos próprios. Verdadeiro ou falso? | D8: =IF(C8=E8,1,0) -> 0 | E8: V
A9: 3 | B9: A rentabilidade dos recursos próprios depende exclusivamente da rentabilidade do investimento em ativo fixo, do custo de dívida e dos dividendos pagos. Verdadeiro ou falso? | D9: 0 | E9: F
A10: 4 | B10: Tomando a fórmula de desconto de fluxos de caixa, se aumentarmos o K que exigimos do investimento, o valor “para mim” também aumenta. Verdadeiro ou falso? | D10: 0 | E10: F
A11: 5 | B11: O valor de um projeto de longo prazo depende de três variáveis: de um CF esperado e razoável para cada ano, do crescimento esperado g dos CF e da taxa de retorno exigido K. Verdadeiro ou falso? | D11: 0 | E11: V
A12: 6 | B12: Se pagamos por um projeto uma quantidade igual ao seu valor presente “para mim”, a rentabilidade que esperamos obter é K. Verdadeiro ou falso? | D12: 0 | E12: V
A13: 7 | B13: Uma empresa promete um CFacion de € 10/ano durante muitos anos. Se pago € 100 por ela, espero obter uma rentabilidade de 10%. Verdadeiro ou falso? | D13: 0 | E13: V
A14: 8 | B14: Uma empresa promete um CFacion de € 8/ano durante muitos anos. A rentabilidade que exijo é 16%. Portanto, eu deveria pagar € 40 por ela. Verdadeiro ou falso? | D14: 0 | E14: F
A15: 9 | B15: O CFacion em um ano concreto é a diferença de caixa de um ano para outro no balanço mais os dividendos pagos. Verdadeiro ou falso? | D15: 0 | E15: V
A16: 10 | B16: O CFacion = Lucro Líquido ± Δ AL + depreciações – novos investimentos. Verdadeiro ou falso? | D16: 0 | E16: F
A17: 11 | B17: Um aumento do ativo líquido produz uma diminuição de caixa. Verdadeiro ou falso? | D17: 0 | E17: V
A18: 12 | B18: Um aumento da dívida produz uma diminuição de caixa. Verdadeiro ou falso? | D18: 0 | E18: F | F18: =8/0.16 -> 50
A19: 13 | B19: O CFacion é usado para calcular a rentabilidade do acionista e para o valuation de empresas. Verdadeiro ou falso? | D19: 0 | E19: V
A20: 14 | B20: O CFacion destina-se exclusivamente à devolução de dívida e ao pagamento ao acionista. Verdadeiro ou falso? | D20: 0 | E20: F
A21: 15 | B21: O FCF = EBIT (1-t) ± Δ Ativo líquido. Verdadeiro ou falso? | D21: 0 | E21: V
A22: 16 | B22: O FCF é o CF produzido pelo ativo, sem levar em consideração o financiamento. Verdadeiro ou falso? | D22: 0 | E22: V
A23: 17 | B23: Duas empresas, A e B, tem o mesmo EBIT, mas a empresa A demanda novos investimentos constantemente enquanto a empresa B não. A empresa A produzirá um FCF maior. Verdadeiro ou falso? | D23: 0 | E23: F
A24: 18 | B24: O FCF destina-se somente ao pagamento de dívida e de novos investimentos. Verdadeiro ou falso? | D24: 0 | E24: F
A25: 19 | B25: O FCF destina-se somente ao pagamento de dívida (juros e principal) e acionistas. Verdadeiro ou falso? | D25: 0 | E25: V
A26: 20 | B26: O CF operacional, CFO, é igual ao lucro líquido + depreciações. Verdadeiro ou falso? | D26: 0 | E26: V
A27: 21 | B27: O aumento de caixa é igual ao CFO do ano. Verdadeiro ou falso? | D27: 0 | E27: F
A28: 22 | B28: A rentabilidade que pedimos de um investimento pode ser decomposta em dois componentes: taxa livre de risco (rf) e prêmio de risco (rp). Verdadeiro ou falso? | D28: 0 | E28: V
A29: 23 | B29: O prêmio de risco que pedimos de um investimento depende do risco “objetivo” do projeto e da aversão “subjetiva” ao risco do investidor. Verdadeiro ou falso? | D29: 0 | E29: V
A30: 24 | B30: Se um investidor é mais avesso ao risco que outro, ele estará mais inclinado a exigir uma rentabilidade K menor. Verdadeiro ou falso? | D30: 0 | E30: F
A31: 25 | B31: Uma empresa vale sempre o mesmo para qualquer investidor, pois seu valor depende dos cash flows esperados. Verdadeiro ou falso? | D31: 0 | E31: F
B35: TOTAL CALIFICACION OBTENIDA | D35: =SUM(D7:E31) -> 0
B36: Máxima calificación posible | D36: 25
